[Event "Titled Tuesday Blitz March 14 Late 2023"]
[White "Cramling Bellon, Anna"]
[Black "Fan_Of_Chucky"]
[WhiteFideId "32009232"]
[WhiteElo "1972"]
[BlackElo "2327"]
[Result "0-1"]
[Round "06"]
[TimeControl "180+2"]
[Date "2023.03.14"]
[WhiteClock "0:00:02"]
[BlackClock "0:00:10"]

1. d4 {[%clk 0:03:00]}  Nf6 {[%clk 0:02:48]} 2. c4 {[%clk 0:02:59]}  c5 {[%clk 0:02:48]} 3. d5 {[%clk 0:02:59]}  b5 {[%clk 0:02:48]} 4. cxb5 {[%clk 0:02:57]}  a6 {[%clk 0:02:48]} 5. Nc3 {[%clk 0:02:54]}  axb5 {[%clk 0:02:47]} 6. e4 {[%clk 0:02:48]}  b4 {[%clk 0:02:44]} 7. Nb5 {[%clk 0:02:47]}  d6 {[%clk 0:02:29]} 8. Bc4 {[%clk 0:02:40]}  g6 {[%clk 0:01:55]} 9. e5 {[%clk 0:02:37]}  dxe5 {[%clk 0:01:40]} 10. d6 {[%clk 0:02:35]}  exd6 {[%clk 0:01:19]} 11. Bg5 {[%clk 0:02:34]}  Be7 {[%clk 0:01:12]} 12. Bxf6 {[%clk 0:02:28]}  Bxf6 {[%clk 0:01:13]} 13. Nxd6+ {[%clk 0:02:28]}  Ke7 {[%clk 0:01:10]} 14. Nxc8+ {[%clk 0:01:39]}  Qxc8 {[%clk 0:00:44]} 15. Qd5 {[%clk 0:01:38]}  Qe6 {[%clk 0:00:34]} 16. Qb7+ {[%clk 0:01:32]}  Qd7 {[%clk 0:00:31]} 17. Qxa8 {[%clk 0:01:30]}  Rd8 {[%clk 0:00:30]} 18. Nf3 {[%clk 0:01:24]}  Nc6 {[%clk 0:00:27]} 19. Qa4 {[%clk 0:01:13]}  e4 {[%clk 0:00:28]} 20. O-O {[%clk 0:00:24]}  exf3 {[%clk 0:00:25]} 21. gxf3 {[%clk 0:00:23]}  Bxb2 {[%clk 0:00:22]} 22. Rae1+ {[%clk 0:00:22]}  Ne5 {[%clk 0:00:16]} 23. Qb3 {[%clk 0:00:16]}  Bc3 {[%clk 0:00:13]} 24. Rxe5+ {[%clk 0:00:07]}  Bxe5 {[%clk 0:00:10]} 25. Re1 {[%clk 0:00:08]}  Kf6 {[%clk 0:00:07]} 26. Qe3 {[%clk 0:00:06]}  Qf5 {[%clk 0:00:07]} 27. f4 {[%clk 0:00:04]}  Bd4 {[%clk 0:00:06]} 28. Qe7+ {[%clk 0:00:03]}  Kg7 {[%clk 0:00:06]} 29. Kg2 {[%clk 0:00:02]}  Qg4+ {[%clk 0:00:07]} 30. Kh1 {[%clk 0:00:02]}  Qf3+ {[%clk 0:00:07]} 31. Kg1 {[%clk 0:00:02]}  Bxf2+ {[%clk 0:00:07]} 32. Kf1 {[%clk 0:00:02]}  Bg3+ {[%clk 0:00:08]} 33. Kg1 {[%clk 0:00:02]}  Qf2+ {[%clk 0:00:09]} 34. Kh1 {[%clk 0:00:02]}  Qxh2# {[%clk 0:00:10]} 0-1


[Site "https://www.chess.com"]

[Event "Titled Tuesday Blitz March 14 Late 2023"]
[White "Rodrigues, Tiago Pereira"]
[Black "Smith, Garrett L"]
[WhiteFideId "2101203"]
[BlackFideId "2024829"]
[WhiteElo "2168"]
[BlackElo "2282"]
[Result "1-0"]
[Round "06"]
[TimeControl "180+2"]
[Date "2023.03.14"]
[WhiteClock "0:02:04"]
[BlackClock "0:01:30"]

1. e4 {[%clk 0:02:55]}  c5 {[%clk 0:02:58]} 2. Nf3 {[%clk 0:02:54]}  Nc6 {[%clk 0:02:58]} 3. d3 {[%clk 0:02:54]}  e6 {[%clk 0:02:54]} 4. Nbd2 {[%clk 0:02:55]}  d5 {[%clk 0:02:53]} 5. Be2 {[%clk 0:02:56]}  g6 {[%clk 0:02:52]} 6. c3 {[%clk 0:02:56]}  d4 {[%clk 0:02:51]} 7. cxd4 {[%clk 0:02:48]}  cxd4 {[%clk 0:02:52]} 8. O-O {[%clk 0:02:46]}  Bg7 {[%clk 0:02:51]} 9. b4 {[%clk 0:02:40]}  Nxb4 {[%clk 0:02:45]} 10. Qa4+ {[%clk 0:02:40]}  Nc6 {[%clk 0:02:45]} 11. Ba3 {[%clk 0:02:39]}  Ne7 {[%clk 0:02:42]} 12. Rfb1 {[%clk 0:02:37]}  O-O {[%clk 0:02:39]} 13. Nc4 {[%clk 0:02:36]}  a5 {[%clk 0:01:48]} 14. Bc5 {[%clk 0:02:31]}  Ra6 {[%clk 0:01:47]} 15. Rb2 {[%clk 0:02:28]}  Re8 {[%clk 0:01:40]} 16. Nd6 {[%clk 0:02:22]}  Rf8 {[%clk 0:01:38]} 17. Nxb7 {[%clk 0:02:22]}  Bxb7 {[%clk 0:01:38]} 18. Rxb7 {[%clk 0:02:23]}  Re8 {[%clk 0:01:33]} 19. Qb5 {[%clk 0:02:15]}  Qa8 {[%clk 0:01:30]} 20. a3 {[%clk 0:02:07]}  Rc8 {[%clk 0:01:30]} 21. Bxe7 {[%clk 0:02:04]} 1-0


[Site "https://www.chess.com"]

[Event "Titled Tuesday Blitz March 14 Late 2023"]
[White "Bogaudinov, Rushan"]
[Black "Klenburg, Michael"]
[WhiteFideId "4129288"]
[BlackFideId "14102072"]
[WhiteElo "1949"]
[BlackElo "2396"]
[Result "0-1"]
[Round "06"]
[TimeControl "180+2"]
[Date "2023.03.14"]
[WhiteClock "0:00:05"]
[BlackClock "0:00:18"]

1. a3 {[%clk 0:02:45]}  g6 {[%clk 0:02:57]} 2. h4 {[%clk 0:02:44]}  Nf6 {[%clk 0:02:56]} 3. d3 {[%clk 0:02:44]}  Bg7 {[%clk 0:02:55]} 4. e4 {[%clk 0:02:44]}  d6 {[%clk 0:02:54]} 5. Be2 {[%clk 0:02:44]}  h5 {[%clk 0:02:53]} 6. Nf3 {[%clk 0:02:36]}  Nbd7 {[%clk 0:02:51]} 7. O-O {[%clk 0:02:36]}  c6 {[%clk 0:02:51]} 8. Nc3 {[%clk 0:02:30]}  O-O {[%clk 0:02:51]} 9. d4 {[%clk 0:02:30]}  Ng4 {[%clk 0:02:50]} 10. Ng5 {[%clk 0:02:25]}  Qb6 {[%clk 0:02:49]} 11. Bxg4 {[%clk 0:02:19]}  hxg4 {[%clk 0:02:48]} 12. Qxg4 {[%clk 0:02:13]}  Qxd4 {[%clk 0:02:44]} 13. Be3 {[%clk 0:02:09]}  Qc4 {[%clk 0:02:42]} 14. Qd1 {[%clk 0:01:53]}  Nf6 {[%clk 0:02:40]} 15. Qd3 {[%clk 0:01:48]}  Qxd3 {[%clk 0:02:40]} 16. cxd3 {[%clk 0:01:48]}  Ng4 {[%clk 0:02:39]} 17. Bd2 {[%clk 0:01:37]}  Ne5 {[%clk 0:02:38]} 18. d4 {[%clk 0:01:26]}  Nc4 {[%clk 0:02:37]} 19. Be3 {[%clk 0:01:24]}  Nxb2 {[%clk 0:02:35]} 20. Rab1 {[%clk 0:01:23]}  Nc4 {[%clk 0:02:35]} 21. a4 {[%clk 0:01:19]}  a5 {[%clk 0:02:32]} 22. Nf3 {[%clk 0:01:12]}  Nxe3 {[%clk 0:02:28]} 23. fxe3 {[%clk 0:01:12]}  e6 {[%clk 0:02:22]} 24. Rb2 {[%clk 0:01:09]}  Bh6 {[%clk 0:02:15]} 25. Kf2 {[%clk 0:01:07]}  f5 {[%clk 0:02:12]} 26. e5 {[%clk 0:01:01]}  d5 {[%clk 0:02:08]} 27. g3 {[%clk 0:00:57]}  Rf7 {[%clk 0:02:07]} 28. Ne1 {[%clk 0:00:56]}  g5 {[%clk 0:02:05]} 29. hxg5 {[%clk 0:00:54]}  Bxg5 {[%clk 0:02:05]} 30. Rh1 {[%clk 0:00:50]}  Bd8 {[%clk 0:01:58]} 31. Nd3 {[%clk 0:00:48]}  b6 {[%clk 0:01:58]} 32. Nf4 {[%clk 0:00:44]}  Raa7 {[%clk 0:01:50]} 33. Kf3 {[%clk 0:00:44]}  Rh7 {[%clk 0:01:49]} 34. Rbh2 {[%clk 0:00:43]}  Rxh2 {[%clk 0:01:47]} 35. Rxh2 {[%clk 0:00:44]}  Rh7 {[%clk 0:01:47]} 36. Rxh7 {[%clk 0:00:31]}  Kxh7 {[%clk 0:01:47]} 37. g4 {[%clk 0:00:26]}  fxg4+ {[%clk 0:01:46]} 38. Kxg4 {[%clk 0:00:27]}  Bd7 {[%clk 0:01:43]} 39. e4 {[%clk 0:00:26]}  Kg7 {[%clk 0:01:40]} 40. Kf3 {[%clk 0:00:23]}  Kf7 {[%clk 0:01:39]} 41. Ke3 {[%clk 0:00:23]}  Bg5 {[%clk 0:01:32]} 42. Kf3 {[%clk 0:00:23]}  Bc8 {[%clk 0:01:23]} 43. exd5 {[%clk 0:00:20]}  exd5 {[%clk 0:01:22]} 44. Nfe2 {[%clk 0:00:16]}  Bd2 {[%clk 0:01:17]} 45. Kg3 {[%clk 0:00:15]}  Bf5 {[%clk 0:01:12]} 46. Kf3 {[%clk 0:00:14]}  Ke7 {[%clk 0:01:12]} 47. Kg3 {[%clk 0:00:14]}  Bc2 {[%clk 0:01:07]} 48. Kf3 {[%clk 0:00:14]}  Bf5 {[%clk 0:00:51]} 49. Kg3 {[%clk 0:00:14]}  Kd7 {[%clk 0:00:51]} 50. Kf3 {[%clk 0:00:14]}  Bd3 {[%clk 0:00:44]} 51. Kf2 {[%clk 0:00:13]}  Ke6 {[%clk 0:00:42]} 52. Kf3 {[%clk 0:00:12]}  b5 {[%clk 0:00:42]} 53. Nf4+ {[%clk 0:00:08]}  Bxf4 {[%clk 0:00:41]} 54. Kxf4 {[%clk 0:00:09]}  b4 {[%clk 0:00:41]} 55. Nd1 {[%clk 0:00:09]}  Bc2 {[%clk 0:00:40]} 56. Nb2 {[%clk 0:00:09]}  Bb3 {[%clk 0:00:33]} 57. Ke3 {[%clk 0:00:06]}  c5 {[%clk 0:00:32]} 58. Nd3 {[%clk 0:00:05]}  c4 {[%clk 0:00:26]} 59. Nf4+ {[%clk 0:00:05]}  Kd7 {[%clk 0:00:23]} 60. Nxd5 {[%clk 0:00:06]}  c3 {[%clk 0:00:22]} 61. Nf4 {[%clk 0:00:06]}  Bc4 {[%clk 0:00:21]} 62. d5 {[%clk 0:00:04]}  b3 {[%clk 0:00:20]} 63. Kd4 {[%clk 0:00:03]}  b2 {[%clk 0:00:19]} 64. Kxc3 {[%clk 0:00:03]}  b1=Q {[%clk 0:00:19]} 65. Kxc4 {[%clk 0:00:04]}  Qe4+ {[%clk 0:00:18]} 66. Kc5 {[%clk 0:00:04]}  Qxf4 {[%clk 0:00:18]} 67. e6+ {[%clk 0:00:05]}  Ke7 {[%clk 0:00:18]} 68. Kb5 {[%clk 0:00:04]}  Qd6 {[%clk 0:00:18]} 69. Kc4 {[%clk 0:00:04]}  Qb4+ {[%clk 0:00:17]} 70. Kd3 {[%clk 0:00:04]}  Qxa4 {[%clk 0:00:17]} 71. Kc3 {[%clk 0:00:04]}  Qb4+ {[%clk 0:00:17]} 72. Kd3 {[%clk 0:00:05]}  a4 {[%clk 0:00:18]} 0-1


[Site "https://www.chess.com"]

[Event "Titled Tuesday Blitz March 14 Late 2023"]
[White "Jenkins, Drake"]
[Black "Gasparyan, David"]
[WhiteFideId "2022397"]
[BlackFideId "13311980"]
[WhiteElo "2248"]
[BlackElo "2493"]
[Result "0-1"]
[Round "06"]
[TimeControl "180+2"]
[Date "2023.03.14"]
[WhiteClock "0:00:02"]
[BlackClock "0:01:37"]

1. Nf3 {[%clk 0:01:03]}  c5 {[%clk 0:02:55]} 2. c4 {[%clk 0:01:03]}  e6 {[%clk 0:02:54]} 3. d4 {[%clk 0:01:04]}  cxd4 {[%clk 0:02:54]} 4. Nxd4 {[%clk 0:01:05]}  Nc6 {[%clk 0:02:55]} 5. Nc3 {[%clk 0:01:04]}  Qc7 {[%clk 0:02:55]} 6. Nc2 {[%clk 0:01:03]}  a6 {[%clk 0:02:55]} 7. g3 {[%clk 0:01:03]}  Nf6 {[%clk 0:02:55]} 8. Bg2 {[%clk 0:01:04]}  Bc5 {[%clk 0:02:56]} 9. O-O {[%clk 0:01:04]}  O-O {[%clk 0:02:57]} 10. b3 {[%clk 0:01:03]}  d6 {[%clk 0:02:51]} 11. Bb2 {[%clk 0:01:00]}  Rb8 {[%clk 0:02:50]} 12. Qd2 {[%clk 0:01:00]}  b5 {[%clk 0:02:50]} 13. cxb5 {[%clk 0:00:58]}  axb5 {[%clk 0:02:51]} 14. Rfc1 {[%clk 0:00:39]}  Qa7 {[%clk 0:02:48]} 15. e3 {[%clk 0:00:38]}  Ba6 {[%clk 0:02:41]} 16. a3 {[%clk 0:00:32]}  Rbc8 {[%clk 0:02:40]} 17. b4 {[%clk 0:00:31]}  Bb6 {[%clk 0:02:36]} 18. Qxd6 {[%clk 0:00:31]}  Rfd8 {[%clk 0:02:35]} 19. Qf4 {[%clk 0:00:29]}  Ne7 {[%clk 0:02:27]} 20. Ne1 {[%clk 0:00:17]}  Ng6 {[%clk 0:02:23]} 21. Qf3 {[%clk 0:00:14]}  Ne5 {[%clk 0:02:10]} 22. Qe2 {[%clk 0:00:12]}  Nc4 {[%clk 0:02:08]} 23. Rab1 {[%clk 0:00:10]}  Rd2 {[%clk 0:02:07]} 24. Qf3 {[%clk 0:00:07]}  Nxb2 {[%clk 0:02:05]} 25. Nxb5 {[%clk 0:00:05]}  Qb8 {[%clk 0:01:57]} 26. Rxc8+ {[%clk 0:00:05]}  Qxc8 {[%clk 0:01:57]} 27. Nd4 {[%clk 0:00:03]}  Bxd4 {[%clk 0:01:53]} 28. exd4 {[%clk 0:00:04]}  Nc4 {[%clk 0:01:53]} 29. b5 {[%clk 0:00:02]}  Nxa3 {[%clk 0:01:36]} 30. bxa6 {[%clk 0:00:02]}  Nxb1 {[%clk 0:01:36]} 31. a7 {[%clk 0:00:02]}  Nd5 {[%clk 0:01:37]} 0-1


[Site "https://www.chess.com"]

[Event "Titled Tuesday Blitz March 14 Late 2023"]
[White "Fernandez Hernandez, Gerardo"]
[Black "Martinez Molina, Carlos Alberto"]
[WhiteFideId "2207400"]
[BlackFideId "5122708"]
[WhiteElo "2200"]
[BlackElo "2212"]
[Result "1-0"]
[Round "06"]
[TimeControl "180+2"]
[Date "2023.03.14"]
[WhiteClock "0:00:07"]
[BlackClock "0:01:35"]

1. e4 {[%clk 0:03:00]}  e5 {[%clk 0:02:58]} 2. Nf3 {[%clk 0:02:55]}  Nc6 {[%clk 0:02:57]} 3. Nc3 {[%clk 0:02:55]}  Nf6 {[%clk 0:02:57]} 4. Bb5 {[%clk 0:02:54]}  d6 {[%clk 0:02:56]} 5. d4 {[%clk 0:02:52]}  exd4 {[%clk 0:02:56]} 6. Qxd4 {[%clk 0:02:51]}  Bd7 {[%clk 0:02:56]} 7. Bxc6 {[%clk 0:02:52]}  bxc6 {[%clk 0:02:56]} 8. Bf4 {[%clk 0:02:45]}  Be7 {[%clk 0:02:55]} 9. h3 {[%clk 0:02:43]}  O-O {[%clk 0:02:55]} 10. O-O {[%clk 0:02:38]}  Rb8 {[%clk 0:02:54]} 11. b3 {[%clk 0:02:35]}  c5 {[%clk 0:02:53]} 12. Qd3 {[%clk 0:02:18]}  Bc6 {[%clk 0:02:47]} 13. Rad1 {[%clk 0:02:12]}  Re8 {[%clk 0:02:45]} 14. Rfe1 {[%clk 0:02:10]}  Rb4 {[%clk 0:02:43]} 15. a3 {[%clk 0:02:03]}  Rb8 {[%clk 0:02:42]} 16. Nd5 {[%clk 0:02:02]}  Nxd5 {[%clk 0:02:38]} 17. exd5 {[%clk 0:02:01]}  Bd7 {[%clk 0:02:39]} 18. Re2 {[%clk 0:01:49]}  Bf6 {[%clk 0:02:36]} 19. Rxe8+ {[%clk 0:01:46]}  Qxe8 {[%clk 0:02:37]} 20. Re1 {[%clk 0:01:45]}  Qf8 {[%clk 0:02:37]} 21. Bg5 {[%clk 0:01:38]}  Bb2 {[%clk 0:02:26]} 22. Be7 {[%clk 0:01:26]}  Qc8 {[%clk 0:02:25]} 23. Ng5 {[%clk 0:01:24]}  Bf5 {[%clk 0:02:23]} 24. Qf3 {[%clk 0:01:08]}  h6 {[%clk 0:02:16]} 25. Nxf7 {[%clk 0:00:52]}  Kxf7 {[%clk 0:02:15]} 26. g4 {[%clk 0:00:41]}  Be5 {[%clk 0:02:10]} 27. Bh4 {[%clk 0:00:28]}  g6 {[%clk 0:02:02]} 28. gxf5 {[%clk 0:00:27]}  gxf5 {[%clk 0:02:02]} 29. Qh5+ {[%clk 0:00:23]}  Kg7 {[%clk 0:01:56]} 30. f4 {[%clk 0:00:21]}  Bd4+ {[%clk 0:01:54]} 31. Bf2 {[%clk 0:00:18]}  Qg8 {[%clk 0:01:49]} 32. Bxd4+ {[%clk 0:00:13]}  cxd4 {[%clk 0:01:42]} 33. Kh2 {[%clk 0:00:10]}  Qf7 {[%clk 0:01:33]} 34. Rg1+ {[%clk 0:00:07]}  Kf8 {[%clk 0:01:33]} 35. Qxh6+ {[%clk 0:00:07]}  Ke7 {[%clk 0:01:33]} 36. Rg7 {[%clk 0:00:06]}  Rf8 {[%clk 0:01:33]} 37. Rxf7+ {[%clk 0:00:06]}  Rxf7 {[%clk 0:01:34]} 38. Qg5+ {[%clk 0:00:06]}  Kd7 {[%clk 0:01:33]} 39. Qg6 {[%clk 0:00:07]}  Ke7 {[%clk 0:01:33]} 40. Qe6+ {[%clk 0:00:06]}  Kf8 {[%clk 0:01:33]} 41. Qc8+ {[%clk 0:00:06]}  Kg7 {[%clk 0:01:33]} 42. Kg3 {[%clk 0:00:06]}  Kh7 {[%clk 0:01:30]} 43. Qb7 {[%clk 0:00:05]}  Re7 {[%clk 0:01:28]} 44. Qxa7 {[%clk 0:00:04]}  d3 {[%clk 0:01:29]} 45. cxd3 {[%clk 0:00:04]}  Rg7+ {[%clk 0:01:29]} 46. Kf3 {[%clk 0:00:04]}  Rf7 {[%clk 0:01:30]} 47. Qd4 {[%clk 0:00:03]}  Kg6 {[%clk 0:01:31]} 48. Qh8 {[%clk 0:00:03]}  Re7 {[%clk 0:01:30]} 49. h4 {[%clk 0:00:03]}  Re1 {[%clk 0:01:29]} 50. h5+ {[%clk 0:00:03]}  Kf7 {[%clk 0:01:29]} 51. Kf2 {[%clk 0:00:04]}  Rh1 {[%clk 0:01:29]} 52. Qd4 {[%clk 0:00:04]}  Rh2+ {[%clk 0:01:29]} 53. Kg3 {[%clk 0:00:03]}  Rxh5 {[%clk 0:01:29]} 54. a4 {[%clk 0:00:03]}  Rh6 {[%clk 0:01:28]} 55. a5 {[%clk 0:00:03]}  Rg6+ {[%clk 0:01:29]} 56. Kf3 {[%clk 0:00:03]}  Rh6 {[%clk 0:01:29]} 57. a6 {[%clk 0:00:03]}  Rh1 {[%clk 0:01:27]} 58. a7 {[%clk 0:00:04]}  Ra1 {[%clk 0:01:28]} 59. Ke3 {[%clk 0:00:02]}  Re1+ {[%clk 0:01:27]} 60. Kd2 {[%clk 0:00:01]}  Re8 {[%clk 0:01:28]} 61. Qb4 {[%clk 0:00:01]}  Rg8 {[%clk 0:01:29]} 62. Qb8 {[%clk 0:00:02]}  Rg2+ {[%clk 0:01:29]} 63. Kc3 {[%clk 0:00:02]}  Rg1 {[%clk 0:01:30]} 64. a8=Q {[%clk 0:00:03]}  Rc1+ {[%clk 0:01:30]} 65. Kb4 {[%clk 0:00:03]}  c5+ {[%clk 0:01:30]} 66. Kb5 {[%clk 0:00:03]}  Re1 {[%clk 0:01:31]} 67. Qf8+ {[%clk 0:00:03]}  Kg6 {[%clk 0:01:32]} 68. Qg8+ {[%clk 0:00:03]}  Kh5 {[%clk 0:01:33]} 69. Qaf8 {[%clk 0:00:04]}  Rg1 {[%clk 0:01:31]} 70. Qff7+ {[%clk 0:00:05]}  Kh4 {[%clk 0:01:32]} 71. Qgh7+ {[%clk 0:00:05]}  Kg3 {[%clk 0:01:32]} 72. Qfg6+ {[%clk 0:00:06]}  Kf2 {[%clk 0:01:33]} 73. Qxg1+ {[%clk 0:00:06]}  Kf3 {[%clk 0:01:33]} 74. Qxf5 {[%clk 0:00:06]}  Ke2 {[%clk 0:01:33]} 75. Qe4+ {[%clk 0:00:06]}  Kd2 {[%clk 0:01:34]} 76. Qf2+ {[%clk 0:00:06]}  Kc1 {[%clk 0:01:34]} 77. Qc4+ {[%clk 0:00:06]}  Kb1 {[%clk 0:01:34]} 78. Qcc2+ {[%clk 0:00:06]}  Ka1 {[%clk 0:01:35]} 79. Qa2# {[%clk 0:00:07]} 1-0


[Site "https://www.chess.com"]

[Event "Titled Tuesday Blitz March 14 Late 2023"]
[White "Szyszylo, Rafal"]
[Black "Comas Fabrego, Lluis"]
[WhiteFideId "1109626"]
[BlackFideId "2200325"]
[WhiteElo "1951"]
[BlackElo "2523"]
[Result "1-0"]
[Round "06"]
[TimeControl "180+2"]
[Date "2023.03.14"]
[WhiteClock "0:00:20"]
[BlackClock "0:00:04"]

1. e4 {[%clk 0:03:00]}  c5 {[%clk 0:02:58]} 2. Ne2 {[%clk 0:03:00]}  d6 {[%clk 0:02:58]} 3. g3 {[%clk 0:03:00]}  g6 {[%clk 0:02:58]} 4. Bg2 {[%clk 0:03:01]}  Bg7 {[%clk 0:02:58]} 5. h3 {[%clk 0:03:01]}  Nf6 {[%clk 0:02:57]} 6. O-O {[%clk 0:03:01]}  O-O {[%clk 0:02:56]} 7. c3 {[%clk 0:03:02]}  e5 {[%clk 0:02:45]} 8. Na3 {[%clk 0:02:49]}  Nc6 {[%clk 0:02:43]} 9. Nc2 {[%clk 0:02:47]}  Re8 {[%clk 0:02:43]} 10. Re1 {[%clk 0:02:46]}  b6 {[%clk 0:02:39]} 11. a4 {[%clk 0:02:45]}  Bb7 {[%clk 0:02:34]} 12. d3 {[%clk 0:02:36]}  h6 {[%clk 0:02:23]} 13. Kh2 {[%clk 0:02:26]}  Kh7 {[%clk 0:02:22]} 14. Ng1 {[%clk 0:02:24]}  d5 {[%clk 0:02:19]} 15. exd5 {[%clk 0:02:16]}  Nxd5 {[%clk 0:02:18]} 16. Ne3 {[%clk 0:02:12]}  Nxe3 {[%clk 0:02:08]} 17. Bxe3 {[%clk 0:02:13]}  Qd7 {[%clk 0:02:08]} 18. Qc2 {[%clk 0:02:12]}  Rad8 {[%clk 0:02:07]} 19. Rad1 {[%clk 0:02:13]}  Ba6 {[%clk 0:02:00]} 20. Bf1 {[%clk 0:02:12]}  Bb7 {[%clk 0:01:42]} 21. Bg2 {[%clk 0:02:10]}  f5 {[%clk 0:01:42]} 22. Ne2 {[%clk 0:01:51]}  Qf7 {[%clk 0:01:35]} 23. f4 {[%clk 0:01:50]}  exf4 {[%clk 0:01:29]} 24. Nxf4 {[%clk 0:01:49]}  Ne5 {[%clk 0:01:25]} 25. Bg1 {[%clk 0:01:22]}  Nf3+ {[%clk 0:01:18]} 26. Bxf3 {[%clk 0:01:22]}  Bxf3 {[%clk 0:01:19]} 27. d4 {[%clk 0:01:15]}  Bxd1 {[%clk 0:01:18]} 28. Rxd1 {[%clk 0:01:14]}  Qc4 {[%clk 0:01:05]} 29. b3 {[%clk 0:01:06]}  Qf7 {[%clk 0:01:01]} 30. h4 {[%clk 0:01:06]}  cxd4 {[%clk 0:00:57]} 31. cxd4 {[%clk 0:01:06]}  Re4 {[%clk 0:00:56]} 32. d5 {[%clk 0:01:03]}  Be5 {[%clk 0:00:50]} 33. Ne6 {[%clk 0:01:00]}  Rxd5 {[%clk 0:00:37]} 34. Rxd5 {[%clk 0:00:54]}  Qxe6 {[%clk 0:00:37]} 35. Rd2 {[%clk 0:00:49]}  Bd6 {[%clk 0:00:33]} 36. Bf2 {[%clk 0:00:47]}  f4 {[%clk 0:00:30]} 37. Rxd6 {[%clk 0:00:30]}  fxg3+ {[%clk 0:00:29]} 38. Kg2 {[%clk 0:00:30]}  Qf7 {[%clk 0:00:04]} 39. Rd7 {[%clk 0:00:20]} 1-0


[Site "https://www.chess.com"]

[Event "Titled Tuesday Blitz March 14 Late 2023"]
[White "Pino Perez, Lazaro"]
[Black "Djordjevic, Dejan N"]
[WhiteFideId "3517055"]
[BlackFideId "913316"]
[WhiteElo "2170"]
[BlackElo "2261"]
[Result "1-0"]
[Round "06"]
[TimeControl "180+2"]
[Date "2023.03.14"]
[WhiteClock "0:00:05"]
[BlackClock "0:00:01"]

1. d4 {[%clk 0:03:00]}  Nf6 {[%clk 0:02:55]} 2. Bf4 {[%clk 0:03:00]}  d6 {[%clk 0:02:53]} 3. Nc3 {[%clk 0:02:55]}  Bf5 {[%clk 0:02:52]} 4. f3 {[%clk 0:02:51]}  h6 {[%clk 0:02:45]} 5. e4 {[%clk 0:02:45]}  Bg6 {[%clk 0:02:43]} 6. Qd2 {[%clk 0:02:45]}  a6 {[%clk 0:02:42]} 7. g4 {[%clk 0:02:36]}  b5 {[%clk 0:02:39]} 8. h4 {[%clk 0:02:31]}  Nc6 {[%clk 0:02:16]} 9. a4 {[%clk 0:01:55]}  b4 {[%clk 0:02:09]} 10. Nd5 {[%clk 0:01:55]}  e5 {[%clk 0:02:05]} 11. Nxf6+ {[%clk 0:01:26]}  Qxf6 {[%clk 0:02:04]} 12. Bg5 {[%clk 0:01:25]}  hxg5 {[%clk 0:01:55]} 13. hxg5 {[%clk 0:01:25]}  Rxh1 {[%clk 0:01:55]} 14. gxf6 {[%clk 0:01:25]}  Rxg1 {[%clk 0:01:54]} 15. d5 {[%clk 0:01:11]}  Nd4 {[%clk 0:01:52]} 16. Kf2 {[%clk 0:01:11]}  Rh1 {[%clk 0:01:42]} 17. Bb5+ {[%clk 0:01:11]}  axb5 {[%clk 0:01:40]} 18. Rxh1 {[%clk 0:01:10]}  gxf6 {[%clk 0:01:36]} 19. axb5 {[%clk 0:01:05]}  Rb8 {[%clk 0:01:24]} 20. Qxb4 {[%clk 0:00:47]}  Rxb5 {[%clk 0:01:16]} 21. Qa4 {[%clk 0:00:47]}  Ke7 {[%clk 0:01:12]} 22. Rb1 {[%clk 0:00:32]}  Rb6 {[%clk 0:00:49]} 23. Qa7 {[%clk 0:00:28]}  Kd7 {[%clk 0:00:44]} 24. c3 {[%clk 0:00:27]}  Nb5 {[%clk 0:00:35]} 25. Qa4 {[%clk 0:00:27]}  Ke7 {[%clk 0:00:35]} 26. Rh1 {[%clk 0:00:26]}  Bg7 {[%clk 0:00:31]} 27. Qa8 {[%clk 0:00:20]}  c5 {[%clk 0:00:07]} 28. Qg8 {[%clk 0:00:16]}  Bf8 {[%clk 0:00:06]} 29. g5 {[%clk 0:00:10]}  fxg5 {[%clk 0:00:06]} 30. Qh8 {[%clk 0:00:10]}  Nc7 {[%clk 0:00:05]} 31. Qh3 {[%clk 0:00:08]}  Rxb2+ {[%clk 0:00:05]} 32. Ke3 {[%clk 0:00:07]}  Rc2 {[%clk 0:00:04]} 33. Kd3 {[%clk 0:00:06]}  Rf2 {[%clk 0:00:04]} 34. Qg3 {[%clk 0:00:06]}  f6 {[%clk 0:00:02]} 35. Qxf2 {[%clk 0:00:06]}  Bg7 {[%clk 0:00:01]} 36. Ra1 {[%clk 0:00:06]}  Ne8 {[%clk 0:00:01]} 37. Ra7+ {[%clk 0:00:07]}  Kf8 {[%clk 0:00:02]} 38. Qb2 {[%clk 0:00:05]}  Bh6 {[%clk 0:00:01]} 39. Qb7 {[%clk 0:00:05]} 1-0


[Site "https://www.chess.com"]

[Event "Titled Tuesday Blitz March 14 Late 2023"]
[White "Manu_ChessExcelsior"]
[Black "Kostiukov, Alexandr"]
[BlackFideId "14108100"]
[WhiteElo "2014"]
[BlackElo "2202"]
[Result "1-0"]
[Round "06"]
[TimeControl "180+2"]
[Date "2023.03.14"]
[WhiteClock "0:00:37"]
[BlackClock "0:00:20"]

1. e4 {[%clk 0:03:00]}  c5 {[%clk 0:02:08]} 2. g3 {[%clk 0:02:58]}  g6 {[%clk 0:02:08]} 3. Bg2 {[%clk 0:02:58]}  Bg7 {[%clk 0:02:09]} 4. d3 {[%clk 0:02:59]}  Nc6 {[%clk 0:02:10]} 5. f4 {[%clk 0:02:59]}  d6 {[%clk 0:02:08]} 6. Nf3 {[%clk 0:03:00]}  Nf6 {[%clk 0:02:08]} 7. O-O {[%clk 0:03:00]}  O-O {[%clk 0:02:09]} 8. c3 {[%clk 0:03:01]}  Rb8 {[%clk 0:02:05]} 9. Kh1 {[%clk 0:02:33]}  b5 {[%clk 0:02:05]} 10. Be3 {[%clk 0:02:29]}  c4 {[%clk 0:01:53]} 11. Bg1 {[%clk 0:02:19]}  cxd3 {[%clk 0:01:49]} 12. Qxd3 {[%clk 0:02:20]}  b4 {[%clk 0:01:46]} 13. c4 {[%clk 0:01:46]}  a5 {[%clk 0:01:28]} 14. Nbd2 {[%clk 0:01:40]}  a4 {[%clk 0:01:25]} 15. Rad1 {[%clk 0:01:32]}  Qa5 {[%clk 0:01:20]} 16. b3 {[%clk 0:01:28]}  axb3 {[%clk 0:01:08]} 17. axb3 {[%clk 0:01:28]}  Qh5 {[%clk 0:01:08]} 18. Rfe1 {[%clk 0:01:21]}  Bh3 {[%clk 0:01:01]} 19. Qe2 {[%clk 0:01:18]}  Ng4 {[%clk 0:00:57]} 20. Ng5 {[%clk 0:01:11]}  Bxg2+ {[%clk 0:00:51]} 21. Kxg2 {[%clk 0:01:09]}  h6 {[%clk 0:00:44]} 22. h3 {[%clk 0:01:03]}  Nf6 {[%clk 0:00:37]} 23. Ngf3 {[%clk 0:01:01]}  Ra8 {[%clk 0:00:21]} 24. g4 {[%clk 0:00:50]}  Nxg4 {[%clk 0:00:20]} 25. hxg4 {[%clk 0:00:46]}  Qxg4+ {[%clk 0:00:21]} 26. Kf1 {[%clk 0:00:39]}  Ra2 {[%clk 0:00:20]} 27. Be3 {[%clk 0:00:37]} 1-0


[Site "https://www.chess.com"]